[Event "*** Titled Tuesday Blitz"]
[Site "Chess.com"]
[Date "2021.02.09"]
[Round "9"]
[White "Unknown_IM"]
[Black "beto-betun"]
[Result "1-0"]
[WhiteElo "2346"]
[BlackElo "2182"]
[TimeControl "180+1"]
[EndTime "11:40:17 PST"]
[Termination "Unknown_IM won by resignation"]

1. e4 {[%clk 0:03:00.9]} 1... c5 {[%clk 0:03:00]} 2. Nf3 {[%clk 0:03:00.3]} 2...
d6 {[%clk 0:02:59.9]} 3. c3 {[%clk 0:02:56.9]} 3... Nf6 {[%clk 0:02:58.9]} 4.
Be2 {[%clk 0:02:56]} 4... g6 {[%clk 0:02:58.6]} 5. O-O {[%clk 0:02:53.5]} 5...
Bg7 {[%clk 0:02:54.7]} 6. Bb5+ {[%clk 0:02:53.4]} 6... Bd7 {[%clk 0:02:43.7]} 7.
Bxd7+ {[%clk 0:02:52.3]} 7... Qxd7 {[%clk 0:02:44.4]} 8. Re1 {[%clk 0:02:51.6]}
8... e5 {[%clk 0:02:41]} 9. d4 {[%clk 0:02:51.4]} 9... cxd4 {[%clk 0:02:40.3]}
10. cxd4 {[%clk 0:02:51.4]} 10... exd4 {[%clk 0:02:40]} 11. Nxd4 {[%clk
0:02:52.3]} 11... O-O {[%clk 0:02:39.2]} 12. Nc3 {[%clk 0:02:51.5]} 12... Nc6
{[%clk 0:02:37.8]} 13. Be3 {[%clk 0:02:48.5]} 13... Rfe8 {[%clk 0:02:35.9]} 14.
f3 {[%clk 0:02:48.3]} 14... Ne5 {[%clk 0:02:28.2]} 15. Qb3 {[%clk 0:02:43.9]}
15... Rac8 {[%clk 0:02:19.3]} 16. Rad1 {[%clk 0:02:42.9]} 16... Nc4 {[%clk
0:02:14.5]} 17. Bf2 {[%clk 0:02:42.4]} 17... b6 {[%clk 0:02:04.5]} 18. Ndb5
{[%clk 0:02:36.1]} 18... a6 {[%clk 0:01:40]} 19. Nxd6 {[%clk 0:02:35.5]} 19...
Nxd6 {[%clk 0:01:40.5]} 20. e5 {[%clk 0:02:35.3]} 20... Qb5 {[%clk 0:01:33.9]}
1-0

[Event "*** Titled Tuesday Blitz"]
[Site "Chess.com"]
[Date "2021.02.09"]
[Round "9"]
[White "CraiggoryC"]
[Black "akanga001"]
[Result "1-0"]
[WhiteElo "2166"]
[BlackElo "1948"]
[TimeControl "180+1"]
[EndTime "11:40:17 PST"]
[Termination "CraiggoryC won by resignation"]

1. e4 {[%clk 0:03:00.9]} 1... c5 {[%clk 0:02:21.9]} 2. Nf3 {[%clk 0:03:00.5]}
2... d6 {[%clk 0:02:19.5]} 3. d4 {[%clk 0:03:01.1]} 3... cxd4 {[%clk 0:02:19.1]}
4. Nxd4 {[%clk 0:03:02]} 4... Nf6 {[%clk 0:02:19.2]} 5. Nc3 {[%clk 0:03:02.5]}
5... a6 {[%clk 0:02:19.4]} 6. Bc4 {[%clk 0:03:02.9]} 6... b5 {[%clk 0:02:17.3]}
7. Bb3 {[%clk 0:03:02.2]} 7... b4 {[%clk 0:02:15.2]} 8. Nd5 {[%clk 0:02:55.2]}
8... Nxe4 {[%clk 0:02:15.1]} 9. Qf3 {[%clk 0:02:39.5]} 9... e5 {[%clk
0:01:51.9]} 10. Qxe4 {[%clk 0:02:28.5]} 10... f5 {[%clk 0:01:37.4]} 11. Nxf5
{[%clk 0:02:17.2]} 1-0

[Event "*** Titled Tuesday Blitz"]
[Site "Chess.com"]
[Date "2021.02.09"]
[Round "9"]
[White "Aygehovit1992"]
[Black "chescomhuynya"]
[Result "1-0"]
[WhiteElo "2617"]
[BlackElo "2498"]
[TimeControl "180+1"]
[EndTime "11:40:32 PST"]
[Termination "Aygehovit1992 won by checkmate"]

1. d4 {[%clk 0:03:00.9]} 1... Nf6 {[%clk 0:02:59.9]} 2. Nc3 {[%clk 0:02:57.9]}
2... d5 {[%clk 0:02:59.9]} 3. Bg5 {[%clk 0:02:51.6]} 3... Nbd7 {[%clk
0:02:59.5]} 4. Qd2 {[%clk 0:02:49.1]} 4... c5 {[%clk 0:02:50.7]} 5. dxc5 {[%clk
0:02:47.9]} 5... e6 {[%clk 0:02:35.2]} 6. e4 {[%clk 0:02:45.9]} 6... dxe4 {[%clk
0:02:25.7]} 7. O-O-O {[%clk 0:02:38.2]} 7... Bxc5 {[%clk 0:02:19.7]} 8. Bb5
{[%clk 0:02:37.5]} 8... Be7 {[%clk 0:02:14.4]} 9. Bxf6 {[%clk 0:02:32.1]} 9...
Bxf6 {[%clk 0:02:13.8]} 10. Nxe4 {[%clk 0:02:32.3]} 10... Be7 {[%clk 0:02:00.7]}
11. Nf3 {[%clk 0:02:18.6]} 11... a6 {[%clk 0:02:00.8]} 12. Bxd7+ {[%clk
0:02:18.4]} 12... Qxd7 {[%clk 0:02:00.8]} 13. Qc3 {[%clk 0:02:19]} 13... Qa4
{[%clk 0:01:50.3]} 14. Qxg7 {[%clk 0:02:15.3]} 14... Rf8 {[%clk 0:01:50.4]} 15.
Nf6+ {[%clk 0:01:53.3]} 15... Bxf6 {[%clk 0:01:50.5]} 16. Qxf6 {[%clk
0:01:54.2]} 16... Qxa2 {[%clk 0:01:50.8]} 17. Rd8# {[%clk 0:01:53.2]} 1-0

[Event "*** Titled Tuesday Blitz"]
[Site "Chess.com"]
[Date "2021.02.09"]
[Round "9"]
[White "soumeow"]
[Black "Dahamdi_Sanudula"]
[Result "1-0"]
[WhiteElo "2219"]
[BlackElo "1761"]
[TimeControl "180+1"]
[EndTime "11:40:34 PST"]
[Termination "soumeow won by resignation"]

1. e4 {[%clk 0:03:00.9]} 1... d5 {[%clk 0:02:53.7]} 2. exd5 {[%clk 0:03:00.6]}
2... Qxd5 {[%clk 0:02:52.3]} 3. Nc3 {[%clk 0:02:59.9]} 3... Qa5 {[%clk 0:02:52]}
4. d4 {[%clk 0:02:59.6]} 4... c6 {[%clk 0:02:51.9]} 5. Bc4 {[%clk 0:02:55.9]}
5... Nf6 {[%clk 0:02:49]} 6. Nf3 {[%clk 0:02:50.1]} 6... Bg4 {[%clk 0:02:48.1]}
7. h3 {[%clk 0:02:47.2]} 7... Bxf3 {[%clk 0:02:45.6]} 8. Qxf3 {[%clk 0:02:46.8]}
8... e6 {[%clk 0:02:43.4]} 9. Bd2 {[%clk 0:02:38.9]} 9... Qc7 {[%clk 0:02:40.4]}
10. O-O-O {[%clk 0:02:35.4]} 10... Nbd7 {[%clk 0:02:38.6]} 11. Rhe1 {[%clk
0:02:30.1]} 11... O-O-O {[%clk 0:02:34.9]} 12. g4 {[%clk 0:02:28.5]} 12... Nb6
{[%clk 0:02:32.6]} 13. Bb3 {[%clk 0:02:27.1]} 13... Bd6 {[%clk 0:02:28.6]} 14.
g5 {[%clk 0:02:20.3]} 14... Nfd5 {[%clk 0:02:24.3]} 15. Ne4 {[%clk 0:02:15.2]}
15... Rhf8 {[%clk 0:02:20.8]} 16. c4 {[%clk 0:02:07.2]} 16... f5 {[%clk
0:01:56.1]} 17. Nxd6+ {[%clk 0:02:01.8]} 17... Qxd6 {[%clk 0:01:48]} 1-0

[Event "*** Titled Tuesday Blitz"]
[Site "Chess.com"]
[Date "2021.02.09"]
[Round "9"]
[White "ri4mi"]
[Black "zurzan"]
[Result "1-0"]
[WhiteElo "2334"]
[BlackElo "1995"]
[TimeControl "180+1"]
[EndTime "11:40:56 PST"]
[Termination "ri4mi won by resignation"]

1. d4 {[%clk 0:02:45.8]} 1... d6 {[%clk 0:02:59.3]} 2. Nc3 {[%clk 0:02:45.6]}
2... g6 {[%clk 0:02:56.8]} 3. e4 {[%clk 0:02:46.5]} 3... Bg7 {[%clk 0:02:56.4]}
4. Be3 {[%clk 0:02:47.4]} 4... Nc6 {[%clk 0:02:55.7]} 5. f3 {[%clk 0:02:48.3]}
5... Nf6 {[%clk 0:02:55.6]} 6. Qd2 {[%clk 0:02:47.4]} 6... e5 {[%clk 0:02:54.8]}
7. Nge2 {[%clk 0:02:45.7]} 7... O-O {[%clk 0:02:53.1]} 8. O-O-O {[%clk 0:02:45]}
8... a6 {[%clk 0:02:49.7]} 9. h4 {[%clk 0:02:43.4]} 9... exd4 {[%clk 0:02:34.4]}
10. Nxd4 {[%clk 0:02:42.6]} 10... Nxd4 {[%clk 0:02:34.1]} 11. Bxd4 {[%clk
0:02:41.4]} 11... c5 {[%clk 0:02:33.2]} 12. Be3 {[%clk 0:02:40.5]} 12... b5
{[%clk 0:02:31.9]} 13. Qxd6 {[%clk 0:02:34.3]} 13... Qa5 {[%clk 0:02:23]} 14.
Bxc5 {[%clk 0:02:25.5]} 14... Be6 {[%clk 0:02:20]} 15. Bb6 {[%clk 0:02:19.2]}
15... Bh6+ {[%clk 0:01:59]} 16. Kb1 {[%clk 0:02:11]} 16... Bxa2+ {[%clk
0:01:55.4]} 17. Nxa2 {[%clk 0:02:11.8]} 17... Qa4 {[%clk 0:01:54.2]} 18. Nc3
{[%clk 0:02:08.1]} 18... Ne8 {[%clk 0:01:43.6]} 19. Qc5 {[%clk 0:01:57.2]} 1-0

[Event "*** Titled Tuesday Blitz"]
[Site "Chess.com"]
[Date "2021.02.09"]
[Round "9"]
[White "superchess02"]
[Black "KaterinaMiroshnik"]
[Result "1-0"]
[WhiteElo "2796"]
[BlackElo "2618"]
[TimeControl "180+1"]
[EndTime "11:41:15 PST"]
[Termination "superchess02 won by resignation"]

1. f4 {[%clk 0:03:00.9]} 1... e6 {[%clk 0:02:57.3]} 2. Nf3 {[%clk 0:03:00.8]}
2... d5 {[%clk 0:02:58.2]} 3. g3 {[%clk 0:03:00.8]} 3... Nf6 {[%clk 0:02:59.1]}
4. Bg2 {[%clk 0:03:01.1]} 4... c5 {[%clk 0:03:00]} 5. O-O {[%clk 0:03:01.1]}
5... b6 {[%clk 0:03:00.9]} 6. d3 {[%clk 0:03:01.3]} 6... Bb7 {[%clk 0:03:01.8]}
7. Kh1 {[%clk 0:03:01.6]} 7... Nc6 {[%clk 0:03:02]} 8. c3 {[%clk 0:03:01.9]}
8... Be7 {[%clk 0:03:01.9]} 9. Nbd2 {[%clk 0:03:02.4]} 9... O-O {[%clk
0:03:02.1]} 10. e4 {[%clk 0:03:02.7]} 10... dxe4 {[%clk 0:03:00.7]} 11. dxe4
{[%clk 0:03:03.6]} 11... b5 {[%clk 0:02:58.6]} 12. e5 {[%clk 0:03:01.5]} 12...
Nd5 {[%clk 0:02:54]} 13. Ne4 {[%clk 0:03:01.5]} 13... c4 {[%clk 0:02:52.3]} 14.
a4 {[%clk 0:02:52.9]} 14... a6 {[%clk 0:02:47.8]} 15. axb5 {[%clk 0:02:52.7]}
15... axb5 {[%clk 0:02:48.7]} 16. Rxa8 {[%clk 0:02:53]} 16... Qxa8 {[%clk
0:02:46.5]} 17. Nd4 {[%clk 0:02:17.6]} 17... Nxd4 {[%clk 0:02:43.5]} 18. Qxd4
{[%clk 0:02:18.5]} 18... Rd8 {[%clk 0:02:42.4]} 19. Qf2 {[%clk 0:02:11.9]} 19...
Qa2 {[%clk 0:02:42.2]} 20. f5 {[%clk 0:02:09.8]} 20... Bc8 {[%clk 0:02:37.1]}
21. f6 {[%clk 0:02:05.4]} 21... gxf6 {[%clk 0:02:36.3]} 22. exf6 {[%clk
0:02:04.8]} 22... Bf8 {[%clk 0:02:31.8]} 23. Qe2 {[%clk 0:02:02.7]} 23... Qb1
{[%clk 0:02:20]} 24. Qg4+ {[%clk 0:01:40.8]} 24... Kh8 {[%clk 0:02:18.1]} 25.
Bh6 {[%clk 0:01:41.3]} 25... Qxf1+ {[%clk 0:02:12.1]} 26. Bxf1 {[%clk
0:01:40.1]} 26... Bxh6 {[%clk 0:02:12.7]} 27. Qh5 {[%clk 0:01:39.7]} 27... Bc1
{[%clk 0:02:03.9]} 28. Qxf7 {[%clk 0:01:37.5]} 1-0

[Event "*** Titled Tuesday Blitz"]
[Site "Chess.com"]
[Date "2021.02.09"]
[Round "9"]
[White "dopolian"]
[Black "FMalexhdez"]
[Result "1-0"]
[WhiteElo "2379"]
[BlackElo "2175"]
[TimeControl "180+1"]
[EndTime "11:41:17 PST"]
[Termination "dopolian won by resignation"]

1. e4 {[%clk 0:03:00.9]} 1... c5 {[%clk 0:02:59.5]} 2. Nf3 {[%clk 0:03:00.6]}
2... d6 {[%clk 0:02:59.8]} 3. d4 {[%clk 0:03:00.9]} 3... cxd4 {[%clk 0:03:00.4]}
4. Nxd4 {[%clk 0:03:01.6]} 4... Nf6 {[%clk 0:03:00.7]} 5. Nc3 {[%clk 0:03:02.1]}
5... a6 {[%clk 0:03:01.4]} 6. h3 {[%clk 0:03:02.6]} 6... e5 {[%clk 0:03:01.3]}
7. Nde2 {[%clk 0:03:03]} 7... h5 {[%clk 0:03:00]} 8. g3 {[%clk 0:03:03]} 8...
Be7 {[%clk 0:02:57.8]} 9. Bg2 {[%clk 0:03:03.3]} 9... Be6 {[%clk 0:02:57.8]} 10.
O-O {[%clk 0:03:02.7]} 10... Nbd7 {[%clk 0:02:58.3]} 11. a4 {[%clk 0:02:54.2]}
11... Qc7 {[%clk 0:02:56.2]} 12. Bg5 {[%clk 0:02:50]} 12... Rc8 {[%clk
0:02:50.9]} 13. Qd2 {[%clk 0:02:36.9]} 13... Nc5 {[%clk 0:02:45.5]} 14. Rfd1
{[%clk 0:02:29.3]} 14... Rd8 {[%clk 0:02:28.5]} 15. Bxf6 {[%clk 0:02:19.7]}
15... Bxf6 {[%clk 0:02:26.7]} 16. Nd5 {[%clk 0:02:20.1]} 16... Qc6 {[%clk
0:02:17.8]} 17. Nxf6+ {[%clk 0:02:14.6]} 17... gxf6 {[%clk 0:02:16.1]} 18. Nc3
{[%clk 0:02:08.5]} 18... Qc8 {[%clk 0:01:57.6]} 19. h4 {[%clk 0:02:03.6]} 19...
f5 {[%clk 0:01:43.7]} 20. exf5 {[%clk 0:02:00.1]} 20... Bxf5 {[%clk 0:01:42.5]}
21. Nd5 {[%clk 0:02:00.6]} 21... Ne4 {[%clk 0:01:20.2]} 22. Bxe4 {[%clk
0:01:54.3]} 22... Bxe4 {[%clk 0:01:17.1]} 23. Nf6+ {[%clk 0:01:53.3]} 1-0

[Event "*** Titled Tuesday Blitz"]
[Site "Chess.com"]
[Date "2021.02.09"]
[Round "9"]
[White "Srisshhhtea"]
[Black "JoachimMouhamad"]
[Result "1-0"]
[WhiteElo "2505"]
[BlackElo "2382"]
[TimeControl "180+1"]
[EndTime "11:41:45 PST"]
[Termination "Srisshhhtea won by resignation"]

1. d4 {[%clk 0:03:00.9]} 1... Nf6 {[%clk 0:02:59.2]} 2. c4 {[%clk 0:03:01]} 2...
g6 {[%clk 0:02:55.5]} 3. Nc3 {[%clk 0:02:59.7]} 3... d5 {[%clk 0:02:53.9]} 4.
Nf3 {[%clk 0:02:59.3]} 4... Bg7 {[%clk 0:02:53.3]} 5. Bf4 {[%clk 0:02:59.8]}
5... O-O {[%clk 0:02:50.8]} 6. e3 {[%clk 0:03:00.2]} 6... c5 {[%clk 0:02:42.4]}
7. dxc5 {[%clk 0:02:59.3]} 7... Be6 {[%clk 0:02:41.8]} 8. Nd4 {[%clk 0:02:47.7]}
8... Bg4 {[%clk 0:02:38.3]} 9. Be2 {[%clk 0:02:44.4]} 9... Bxe2 {[%clk
0:02:36.1]} 10. Qxe2 {[%clk 0:02:45]} 10... Na6 {[%clk 0:02:31.7]} 11. c6 {[%clk
0:02:39.5]} 11... bxc6 {[%clk 0:02:16.3]} 12. Nxc6 {[%clk 0:02:38.6]} 12... Qd7
{[%clk 0:02:09]} 13. cxd5 {[%clk 0:02:38.7]} 13... Nh5 {[%clk 0:01:57.5]} 14.
Qxa6 {[%clk 0:02:31.4]} 14... Nxf4 {[%clk 0:01:51.9]} 15. exf4 {[%clk
0:02:31.3]} 15... e6 {[%clk 0:01:46]} 16. O-O {[%clk 0:02:26.6]} 16... exd5
{[%clk 0:01:45.3]} 17. Nxd5 {[%clk 0:02:25]} 17... Rfe8 {[%clk 0:01:40]} 18.
Rad1 {[%clk 0:02:23.2]} 18... Qg4 {[%clk 0:01:25.4]} 19. Nc7 {[%clk 0:02:18.2]}
19... Qxf4 {[%clk 0:01:20.4]} 20. Nxa8 {[%clk 0:02:14.5]} 20... Rxa8 {[%clk
0:01:21.3]} 21. Qb7 {[%clk 0:02:09.1]} 21... Re8 {[%clk 0:01:20.2]} 22. Qd7
{[%clk 0:02:08.3]} 22... Rf8 {[%clk 0:01:17.6]} 23. b3 {[%clk 0:02:03.1]} 23...
h5 {[%clk 0:01:16.1]} 24. Rd3 {[%clk 0:02:01.4]} 24... h4 {[%clk 0:01:16]} 25.
Rf3 {[%clk 0:01:57.7]} 25... Qg5 {[%clk 0:01:08.7]} 26. Re1 {[%clk 0:01:52.9]}
26... Qg4 {[%clk 0:01:09]} 27. Qxg4 {[%clk 0:01:51.8]} 1-0

[Event "*** Titled Tuesday Blitz"]
[Site "Chess.com"]
[Date "2021.02.09"]
[Round "9"]
[White "GameOverBro"]
[Black "DenLaz"]
[Result "0-1"]
[WhiteElo "2419"]
[BlackElo "2770"]
[TimeControl "180+1"]
[EndTime "11:41:55 PST"]
[Termination "DenLaz won by resignation"]

1. e4 {[%clk 0:03:00.9]} 1... e5 {[%clk 0:02:57.9]} 2. Nf3 {[%clk 0:02:57.1]}
2... Nf6 {[%clk 0:02:57.6]} 3. d4 {[%clk 0:02:56.5]} 3... Nxe4 {[%clk
0:02:54.5]} 4. Bd3 {[%clk 0:02:54.7]} 4... d5 {[%clk 0:02:53.8]} 5. Nxe5 {[%clk
0:02:52]} 5... Bd6 {[%clk 0:02:53.1]} 6. O-O {[%clk 0:02:51.8]} 6... O-O {[%clk
0:02:52.8]} 7. Nc3 {[%clk 0:02:40.4]} 7... Nxc3 {[%clk 0:02:34.2]} 8. bxc3
{[%clk 0:02:37.9]} 8... Nc6 {[%clk 0:02:28.7]} 9. Nxc6 {[%clk 0:02:28.1]} 9...
bxc6 {[%clk 0:02:29.6]} 10. Qh5 {[%clk 0:02:26.8]} 10... g6 {[%clk 0:02:27]} 11.
Qf3 {[%clk 0:02:18.1]} 11... Qh4 {[%clk 0:02:16.6]} 12. g3 {[%clk 0:02:14.6]}
12... Qg4 {[%clk 0:02:16]} 13. Qf6 {[%clk 0:01:51.4]} 13... Qe6 {[%clk
0:02:11.8]} 14. Bg5 {[%clk 0:01:45.8]} 14... Qxf6 {[%clk 0:02:10.3]} 15. Bxf6
{[%clk 0:01:45]} 15... Bh3 {[%clk 0:02:06.8]} 16. Rfe1 {[%clk 0:01:44.1]} 16...
Rab8 {[%clk 0:02:00]} 17. Rab1 {[%clk 0:01:39.2]} 17... Rb6 {[%clk 0:01:55.9]}
18. c4 {[%clk 0:01:28.7]} 18... dxc4 {[%clk 0:01:45.6]} 19. Bxc4 {[%clk
0:01:28.6]} 19... c5 {[%clk 0:01:39.7]} 20. dxc5 {[%clk 0:01:07.5]} 20... Bxc5
{[%clk 0:01:38.1]} 21. Rb3 {[%clk 0:00:57.2]} 21... Rxf6 {[%clk 0:01:35.1]} 0-1

[Event "*** Titled Tuesday Blitz"]
[Site "Chess.com"]
[Date "2021.02.09"]
[Round "9"]
[White "K_A_S_T_O_R"]
[Black "Artem_Sadovsky"]
[Result "1-0"]
[WhiteElo "2791"]
[BlackElo "2541"]
[TimeControl "180+1"]
[EndTime "11:42:00 PST"]
[Termination "K_A_S_T_O_R won by resignation"]

1. e4 {[%clk 0:03:00.9]} 1... g6 {[%clk 0:02:57]} 2. d4 {[%clk 0:03:00]} 2...
Bg7 {[%clk 0:02:57.4]} 3. Nf3 {[%clk 0:03:00.5]} 3... d6 {[%clk 0:02:56.8]} 4.
Bc4 {[%clk 0:03:01]} 4... e6 {[%clk 0:02:56.3]} 5. Bb3 {[%clk 0:03:00.8]} 5...
Ne7 {[%clk 0:02:56.4]} 6. O-O {[%clk 0:03:00.8]} 6... h6 {[%clk 0:02:56.4]} 7.
Re1 {[%clk 0:03:01.2]} 7... g5 {[%clk 0:02:56.4]} 8. h3 {[%clk 0:03:00.1]} 8...
Ng6 {[%clk 0:02:56.6]} 9. c3 {[%clk 0:02:55.5]} 9... Nd7 {[%clk 0:02:56.6]} 10.
Nbd2 {[%clk 0:02:54.5]} 10... O-O {[%clk 0:02:47.2]} 11. Nf1 {[%clk 0:02:54.9]}
11... Nf4 {[%clk 0:02:39.7]} 12. Ng3 {[%clk 0:02:50.2]} 12... e5 {[%clk
0:02:34.9]} 13. Nf5 {[%clk 0:02:40.7]} 13... Qf6 {[%clk 0:02:30.1]} 14. g3
{[%clk 0:02:19]} 14... Nxh3+ {[%clk 0:02:20.9]} 15. Kg2 {[%clk 0:02:19.1]} 15...
g4 {[%clk 0:02:21.5]} 16. Nh2 {[%clk 0:02:18.2]} 16... h5 {[%clk 0:02:16.9]} 17.
Nxg4 {[%clk 0:02:17.7]} 17... hxg4 {[%clk 0:02:06.1]} 18. Qxg4 {[%clk
0:02:18.2]} 18... Nb6 {[%clk 0:01:31.7]} 19. Rh1 {[%clk 0:01:58.9]} 19... Bxf5
{[%clk 0:01:30.5]} 20. exf5 {[%clk 0:01:57.1]} 20... Nxf2 {[%clk 0:01:10.9]} 21.
Kxf2 {[%clk 0:01:54.2]} 21... exd4 {[%clk 0:01:11.4]} 22. Bg5 {[%clk 0:01:52.9]}
22... Qe5 {[%clk 0:01:06.8]} 23. Rae1 {[%clk 0:01:51.3]} 23... Qc5 {[%clk
0:00:56.9]} 24. Bf6 {[%clk 0:01:48.4]} 1-0

[Event "*** Titled Tuesday Blitz"]
[Site "Chess.com"]
[Date "2021.02.09"]
[Round "9"]
[White "LogoCzar"]
[Black "SaqoChess_Twitch"]
[Result "1-0"]
[WhiteElo "2406"]
[BlackElo "2535"]
[TimeControl "180+1"]
[EndTime "11:42:08 PST"]
[Termination "LogoCzar won by resignation"]

1. d4 {[%clk 0:03:00.9]} 1... d5 {[%clk 0:02:52.2]} 2. c4 {[%clk 0:02:58.4]}
2... e6 {[%clk 0:02:52.2]} 3. Nc3 {[%clk 0:02:58.5]} 3... Nf6 {[%clk 0:02:51.4]}
4. Bg5 {[%clk 0:02:58.3]} 4... Be7 {[%clk 0:02:51.4]} 5. e3 {[%clk 0:02:58.7]}
5... O-O {[%clk 0:02:51]} 6. Qc2 {[%clk 0:02:58]} 6... b6 {[%clk 0:02:48.6]} 7.
cxd5 {[%clk 0:02:55.5]} 7... Nxd5 {[%clk 0:02:48.2]} 8. Bxe7 {[%clk 0:02:52]}
8... Qxe7 {[%clk 0:02:49.1]} 9. Nxd5 {[%clk 0:02:51.5]} 9... exd5 {[%clk
0:02:50]} 10. Nf3 {[%clk 0:02:51.9]} 10... c5 {[%clk 0:02:47.4]} 11. dxc5 {[%clk
0:02:50.2]} 11... bxc5 {[%clk 0:02:48.3]} 12. Be2 {[%clk 0:02:50.3]} 12... Be6
{[%clk 0:02:45.5]} 13. O-O {[%clk 0:02:49.5]} 13... Nd7 {[%clk 0:02:45.7]} 14.
Rac1 {[%clk 0:02:49.2]} 14... Rfc8 {[%clk 0:02:44.9]} 15. b3 {[%clk 0:02:49.6]}
15... a5 {[%clk 0:02:44.9]} 16. e4 {[%clk 0:02:45.7]} 16... dxe4 {[%clk
0:02:39.1]} 17. Qxe4 {[%clk 0:02:44.8]} 17... a4 {[%clk 0:02:40]} 18. Bc4 {[%clk
0:02:41.4]} 18... axb3 {[%clk 0:02:37.5]} 19. axb3 {[%clk 0:02:37]} 19... Nf6
{[%clk 0:02:36.3]} 20. Qe2 {[%clk 0:02:33.9]} 20... Rab8 {[%clk 0:02:30.2]} 21.
Ng5 {[%clk 0:02:32.5]} 21... Re8 {[%clk 0:02:05.1]} 22. Rfe1 {[%clk 0:02:32.3]}
22... Nd5 {[%clk 0:02:00.8]} 23. Nxe6 {[%clk 0:02:25.9]} 23... Qxe6 {[%clk
0:01:58.5]} 24. Qd2 {[%clk 0:02:18.3]} 24... Qxe1+ {[%clk 0:01:12.2]} 25. Rxe1
{[%clk 0:02:16.9]} 25... Nf6 {[%clk 0:01:11.5]} 26. Rxe8+ {[%clk 0:02:12.8]}
26... Rxe8 {[%clk 0:01:12.4]} 27. f3 {[%clk 0:02:08.3]} 27... g6 {[%clk
0:01:11.5]} 28. Qd6 {[%clk 0:02:07.4]} 28... Kg7 {[%clk 0:01:11.1]} 29. Qxc5
{[%clk 0:02:06.6]} 29... h5 {[%clk 0:01:09.2]} 30. Qc7 {[%clk 0:02:05.5]} 30...
Rf8 {[%clk 0:01:04.9]} 31. b4 {[%clk 0:02:05.2]} 31... Ne8 {[%clk 0:01:04.1]}
32. Qe7 {[%clk 0:02:03.8]} 32... Nf6 {[%clk 0:00:56.7]} 33. b5 {[%clk 0:02:03]}
33... Ng8 {[%clk 0:00:56.6]} 34. Qc7 {[%clk 0:02:01.6]} 34... Ra8 {[%clk
0:00:55.9]} 35. Qxf7+ {[%clk 0:02:00.8]} 35... Kh6 {[%clk 0:00:56.5]} 36. Qxg8
{[%clk 0:02:00.4]} 36... Rxg8 {[%clk 0:00:56.2]} 37. Bxg8 {[%clk 0:02:00.6]} 1-0

[Event "*** Titled Tuesday Blitz"]
[Site "Chess.com"]
[Date "2021.02.09"]
[Round "9"]
[White "elohunter1999"]
[Black "ChelsieMonica"]
[Result "1-0"]
[WhiteElo "2639"]
[BlackElo "2344"]
[TimeControl "180+1"]
[EndTime "11:42:24 PST"]
[Termination "elohunter1999 won by resignation"]

1. d4 {[%clk 0:03:00.9]} 1... Nf6 {[%clk 0:02:57.3]} 2. c4 {[%clk 0:03:00.7]}
2... c5 {[%clk 0:02:56.2]} 3. d5 {[%clk 0:03:00.6]} 3... e5 {[%clk 0:02:55.9]}
4. Nc3 {[%clk 0:03:00.1]} 4... d6 {[%clk 0:02:55.9]} 5. e4 {[%clk 0:03:00.4]}
5... g6 {[%clk 0:02:55.5]} 6. Nf3 {[%clk 0:02:55.9]} 6... Bg7 {[%clk 0:02:55.5]}
7. Be2 {[%clk 0:02:54.7]} 7... O-O {[%clk 0:02:54.9]} 8. O-O {[%clk 0:02:55.4]}
8... a6 {[%clk 0:02:54.7]} 9. a3 {[%clk 0:02:54.8]} 9... h6 {[%clk 0:02:46.2]}
10. b4 {[%clk 0:02:52.5]} 10... Nbd7 {[%clk 0:02:43.8]} 11. Rb1 {[%clk
0:02:51.9]} 11... a5 {[%clk 0:02:33.2]} 12. Ne1 {[%clk 0:02:33.5]} 12... axb4
{[%clk 0:02:31.1]} 13. axb4 {[%clk 0:02:34.4]} 13... cxb4 {[%clk 0:02:29.2]} 14.
Rxb4 {[%clk 0:02:35.3]} 14... Nc5 {[%clk 0:02:29.7]} 15. f3 {[%clk 0:02:34.2]}
15... g5 {[%clk 0:02:19.4]} 16. Be3 {[%clk 0:02:32]} 16... Nh5 {[%clk
0:02:17.2]} 17. Nd3 {[%clk 0:02:28.7]} 17... Nxd3 {[%clk 0:02:15.6]} 18. Bxd3
{[%clk 0:02:28.4]} 18... Nf4 {[%clk 0:02:16.5]} 19. Qd2 {[%clk 0:02:24.3]} 19...
f5 {[%clk 0:01:59.3]} 20. exf5 {[%clk 0:02:19.6]} 20... Bxf5 {[%clk 0:01:48.7]}
21. Bxf5 {[%clk 0:02:18.9]} 21... Rxf5 {[%clk 0:01:45.9]} 22. Ne4 {[%clk
0:02:18.4]} 22... Rf7 {[%clk 0:01:40]} 23. Rfb1 {[%clk 0:02:17.9]} 23... Bf8
{[%clk 0:00:59.7]} 24. Rxb7 {[%clk 0:02:08.9]} 24... Rxb7 {[%clk 0:00:58.2]} 25.
Rxb7 {[%clk 0:02:09.8]} 25... Ra1+ {[%clk 0:00:57.6]} 26. Kf2 {[%clk 0:02:09.5]}
26... Ra3 {[%clk 0:00:51.7]} 27. Qc2 {[%clk 0:02:04.8]} 27... Nd3+ {[%clk
0:00:49.9]} 28. Ke2 {[%clk 0:01:52.6]} 28... Ra2 {[%clk 0:00:47.1]} 29. Qxa2
{[%clk 0:01:52.3]} 1-0

[Event "*** Titled Tuesday Blitz"]
[Site "Chess.com"]
[Date "2021.02.09"]
[Round "9"]
[White "KyronGriffith"]
[Black "Jungle_Jaguar"]
[Result "1-0"]
[WhiteElo "2538"]
[BlackElo "2635"]
[TimeControl "180+1"]
[EndTime "11:42:33 PST"]
[Termination "KyronGriffith won by checkmate"]

1. e4 {[%clk 0:03:00.9]} 1... e5 {[%clk 0:02:59.1]} 2. Nf3 {[%clk 0:02:59.6]}
2... Nc6 {[%clk 0:02:59.6]} 3. Nc3 {[%clk 0:03:00.2]} 3... Nf6 {[%clk
0:02:58.8]} 4. d4 {[%clk 0:03:00.4]} 4... exd4 {[%clk 0:02:58.1]} 5. Nxd4 {[%clk
0:03:01.3]} 5... Bb4 {[%clk 0:02:58.1]} 6. Nxc6 {[%clk 0:03:01.9]} 6... bxc6
{[%clk 0:02:57.9]} 7. Bd3 {[%clk 0:03:02.5]} 7... O-O {[%clk 0:02:58.1]} 8. O-O
{[%clk 0:03:02.6]} 8... Re8 {[%clk 0:02:57.4]} 9. Qf3 {[%clk 0:03:01.9]} 9...
Rb8 {[%clk 0:02:49.5]} 10. Bg5 {[%clk 0:02:58.9]} 10... Bd6 {[%clk 0:02:49.5]}
11. Rab1 {[%clk 0:02:55.3]} 11... Be5 {[%clk 0:02:49.2]} 12. Bf4 {[%clk
0:02:45.9]} 12... d6 {[%clk 0:02:43.7]} 13. Bxe5 {[%clk 0:02:42.5]} 13... Rxe5
{[%clk 0:02:43.7]} 14. Qg3 {[%clk 0:02:42.3]} 14... Qe7 {[%clk 0:02:30.2]} 15.
f4 {[%clk 0:02:36.9]} 15... Ra5 {[%clk 0:02:28.7]} 16. Rbe1 {[%clk 0:02:21.7]}
16... Nh5 {[%clk 0:01:55.8]} 17. Qf3 {[%clk 0:02:15.9]} 17... Qh4 {[%clk
0:01:34.9]} 18. e5 {[%clk 0:02:05.2]} 18... d5 {[%clk 0:01:19.5]} 19. f5 {[%clk
0:01:51.6]} 19... d4 {[%clk 0:00:30.3]} 20. Qxc6 {[%clk 0:01:29.6]} 20... dxc3
{[%clk 0:00:25.1]} 21. Qe8# {[%clk 0:01:29]} 1-0